Cogmind - Beta 13 @@@ ROGUE MODE // 2024.06.25 @ 02:31:17 Player: annull Result: Destroyed by P-60 Hacker with Shock Rifle Performance ------------- Evolutions (2) 1000 Regions Visited (6) 1200 Robots Destroyed (57) 285 Value Destroyed (1831) 1831 Prototype IDs (1) 20 Alien Tech Used (0) 0 Bonus (709) 709 TOTAL SCORE: 5045 Bonus ------- High Alert Combat Kills 209 Entered Garrisons 200 Aligned with FarCom 300 Cogmind --------- Core Integrity 0/550 Matter 236/300 Energy 140/140 System Corruption 2% Temperature Cool (85) Movement Treading (250) Ox1 Location -8/Garrison Parts ------- > --- POWER (1) -------- Light Deuterium Engine > --- PROPULSION (2) --- Armored Treads Armored Treads > --- UTILITY (5) ------ Large Storage Unit Improved Light Armor Plating > --- WEAPON (3) ------- Slug Cannon Improved Grenade Launcher Improved Grenade Launcher > --- INVENTORY (15) --- Ion Engine Wheel Wheel Light Assault Rifle Mining Laser Mining Laser Great Maul Peak State ------------ > --- POWER ------------ Light Deuterium Engine > --- PROPULSION ------- Light Treads Armored Treads > --- UTILITY ---------- Large Storage Unit Seismic Detector Improved Light Armor Plating Improved Light Armor Plating Improved Light Armor Plating > --- WEAPON ----------- AWS/Autocannon > --- INVENTORY -------- Ion Engine Armored Treads Wheel Wheel Light Assault Rifle Assault Cannon Slug Cannon Improved Grenade Launcher Improved Grenade Launcher Mining Laser Mining Laser Great Maul [Rating: 50] Favorites ----------- Power Light Ion Engine Engine Light Ion Engine Propulsion Aluminum Leg Treads Light Treads Leg Aluminum Leg Utility Improved Light Armor Plating Device Seismic Detector Storage Large Storage Unit Protection Improved Light Armor Plating Weapon Light Assault Rifle Energy Gun EM Pulse Gun Ballistic Gun Light Assault Rifle Ballistic Cannon AWS/Autocannon Launcher Grenade Launcher Slashing Weapon Mining Claw Build | -11 -10 -10 -10 -9 -8 -8 ------- Run | Yrd Mat Min Exi Min Mat Gar Slots Evolved 4 | . . . . . 4 . Power . | . . . . . . . Propulsion . | . . . . . . . Utility 3 | . . . . . 3 . Weapon 1 | . . . . . 1 . Parts Attached 30 | 6 2 3 2 1 9 7 Power 3 | 1 . . 1 . 1 . Engine 3 | 1 . . 1 . 1 . Core . | . . . . . . . Reactor . | . . . . . . . Propulsion 8 | 2 . . . 1 3 2 Treads 5 | . . . . . 3 2 Leg 3 | 2 . . . 1 . . Wheel . | . . . . . . . Hover . | . . . . . . . Flight . | . . . . . . . Utility 7 | 1 1 . 1 . 4 . Device 1 | . . . . . 1 . Storage 3 | 1 1 . 1 . . . Processor . | . . . . . . . Hackware . | . . . . . . . Protection 3 | . . . . . 3 . Artifact . | . . . . . . . Weapon 12 | 2 1 3 . . 1 5 Energy Gun 2 | 2 . . . . . . Energy Cannon . | . . . . . . . Ballistic Gun 3 | . 1 1 . . . 1 Ballistic Cannon 3 | . . . . . 1 2 Launcher 3 | . . 1 . . . 2 Special Weapon . | . . . . . . . Impact Weapon . | . . . . . . . Slashing Weapon 1 | . . 1 . . . . Piercing Weapon . | . . . . . . . Special Melee Weapon . | . . . . . . . Unidentified Prototypes 1 | . . . . . 1 . Parts Lost 8 | . 1 1 . 1 1 4 Power 1 | . . . . . 1 . Propulsion 2 | . . . . 1 . 1 Utility 3 | . . . . . . 3 Weapon 2 | . 1 1 . . . . Highest Loss Streak 2 | . 1 1 . 1 1 2 To Critical Strikes . | . . . . . . . Average Slot Usage (%) 81 | . 83 84 85 84 66 85 Engine 11 | . 14 14 14 14 6 9 Treads 8 | . . . . . 17 18 Leg 14 | . 28 28 28 27 . . Device 3 | . . . . . 8 5 Storage 11 | . 14 14 14 14 9 9 Protection 10 | . . . . . 15 26 Energy Gun 2 | . 17 8 . . . . Ballistic Gun 6 | . 8 10 14 14 . . Ballistic Cannon 4 | . . . . . 9 9 Launcher 7 | . . 8 14 14 . 7 Naked Turns . | . . . . . . . Heaviest Build 95 | 12 16 18 27 27 95 95 Greatest Support 40 | 20 20 20 20 20 40 40 Greatest Overweight (x) 2 | 1 . . 1 2 2 2 Average Overweight (x) . | . . . . 1 2 1 Largest Inventory Capacity 15 | 8 10 10 15 15 15 15 Average Capacity 13 | 7 9 10 10 15 15 15 Most Carried 15 | 7 8 10 10 13 15 13 Average Carried 10 | 5 6 8 9 10 11 10 Final Capacity 15 | 8 10 10 15 15 15 15 Final Carried 13 | 6 8 9 9 13 13 7 Class Distribution -------------------- 54% | Mutant 37% | Tank 8% | Skirmisher Dominant Class ---------------- Mutant | -10/Materials Mutant | -10/Mines Mutant | -10/Exiles Mutant | -9/Mines Tank | -8/Materials Tank | -8/Garrison Resources | -11 -10 -10 -10 -9 -8 -8 ----------- Run | Yrd Mat Min Exi Min Mat Gar Matter Collected 755 | 187 81 45 . 69 81 292 Remotely . | . . . . . . . Salvage Created 1209 | . 111 37 . 91 593 377 Parts 80 | . 10 5 . 7 36 22 Haulers Intercepted . | . . . . . . . Recyclers Shooed . | . . . . . . . Parts Field Recycled . | . . . . . . . Retrieved Matter . | . . . . . . . Parts Self-Destructed . | . . . . . . . Prevented . | . . . . . . . Kills | -11 -10 -10 -10 -9 -8 -8 ------- Run | Yrd Mat Min Exi Min Mat Gar Combat Hostiles Destroyed 50 | . 5 3 . 3 16 23 Guns 7 | . 2 3 . . . 2 Cannons 29 | . . . . . 15 14 AOE 14 | . 3 . . 3 1 7 Classes Destroyed 10 | . 2 . . . 6 2 Builder 3 | . . . . . 3 . Recycler 1 | . . . . . 1 . Watcher 3 | . . . . . 3 . Swarmer 17 | . 3 3 . . . 11 Grunt 21 | . 2 . . 3 9 7 Brawler 3 | . . . . . 2 1 Duelist 1 | . . . . . . 1 Sentry 3 | . . . . . 2 1 Hunter 4 | . . . . . 3 1 Programmer 1 | . . . . . . 1 Best Kill Streak 9 | . 5 3 . 3 9 8 Combat Bots Only 8 | . 5 3 . 3 7 8 Max Kills in Single Turn 3 | . 3 1 . 1 1 3 Gunslinging . | . . . . . . . Exploded 3 | . 3 . . 1 1 3 Melee . | . . . . . . . Uniques/NPCs Destroyed . | . . . . . . . Combat | -11 -10 -10 -10 -9 -8 -8 -------- Run | Yrd Mat Min Exi Min Mat Gar Hostile Shots Fired 252 | . 15 29 . 7 38 163 Missed 62 | . 4 4 . 2 11 41 Damage Taken 2776 | . 227 194 . 75 391 1889 Core 696 | . 100 44 . . 13 539 Absorbed by Shields . | . . . . . . . Core Remaining (%) 71 | 100 . . . 42 . . Volleys Fired 43 | . 7 17 . 4 . 15 Largest 3 | . 2 1 . 2 . 3 Hottest 128 | . 80 40 . 50 . 128 Shots Fired 167 | . 11 17 . 8 57 74 Gun 40 | . 11 17 . 4 . 8 Cannon 114 | . . . . . 57 57 Launcher 13 | . . . . 4 . 9 Special . | . . . . . . . Kinetic 139 | . . 13 . 4 57 65 Thermal . | . . . . . . . Explosive 13 | . . . . 4 . 9 Electromagnetic 15 | . 11 4 . . . . Robot Hit Streak 13 | . 4 6 . . 13 10 Robot Miss Streak 4 | . 1 4 . . 2 4 Penetration Max . | . . . . . . . Secondary Targets . | . . . . . . . Autonomous 91 | . . . . . 57 34 Shots Hit Robots 110 | . 9 8 . . 48 45 Core Hits 62 | . 6 5 . 5 16 30 Critical Kills . | . . . . . . . Critical Parts Destroyed 2 | . . . . 1 . 1 Critical Strikes 13 | . . 1 . 1 6 5 Destroy 2 | . . . . 1 . 1 Blast 10 | . . . . . 6 4 Corrupt 1 | . . 1 . . . . Melee Attacks . | . . . . . . . Impact . | . . . . . . . Slashing . | . . . . . . . Piercing . | . . . . . . . Sneak Attacks . | . . . . . . . Combat Hostiles . | . . . . . . . Follow-up Attacks . | . . . . . . . Damage Inflicted 7222 | . 342 69 . 220 3749 2842 Guns 253 | . 115 69 . 32 . 37 Cannons 5717 | . . . . . 3616 2101 Explosions 1239 | . 227 . . 187 121 704 Melee . | . . . . . . . Ramming 13 | . . . . 1 12 . Kinetic 5821 | . . 35 . 32 3616 2138 Thermal 227 | . 227 . . . . . Explosive 1012 | . . . . 187 121 704 Electromagnetic 149 | . 115 34 . . . . Impact . | . . . . . . . Slashing . | . . . . . . . Piercing . | . . . . . . . Highest Corruption 1 | . . . . . . 1 Average Corruption 1 | . . . . . . 1 Corruption Purged . | . . . . . . . Corruption Blocked . | . . . . . . . Overload Shots . | . . . . . . . Overflow Damage 988 | . 92 . . . 587 309 Projectiles 861 | . . . . . 552 309 Explosions 127 | . 92 . . . 35 . Melee . | . . . . . . . Knockbacks 20 | . . . . . 9 11 Impact . | . . . . . . . Kinetic 18 | . . . . . 9 9 Secondary 2 | . . . . . . 2 Self-Inflicted Damage 248 | . 113 . . . . 135 Shots 5 | . 2 . . . . 3 Rammed 2 | . . . . . 2 . Targets Rammed 3 | . . . . 1 2 . Kicked 1 | . . . . 1 . . Crushed . | . . . . . . . Highest Temperature 610 | . 150 . . 24 8 610 Average Temperature 212 | . 89 . . 14 4 276 Received Heat Transfer 825 | . 54 . . 42 180 549 Effects 18 | . . . . . . 18 Shutdowns 2 | . . . . . . 2 Energy Bleed 1 | . . . . . . 1 Interference 2 | . . . . . . 2 Matter Decay 2 | . . . . . . 2 Short Circuit 2 | . . . . . . 2 Damage (major) 6 | . . . . . . 6 Damage (core) 3 | . . . . . . 3 Siege Activations . | . . . . . . . Robots Corrupted . | . . . . . . . Combat Hostiles . | . . . . . . . Parts Fried . | . . . . . . . Impact Corruptions . | . . . . . . . Robots Melted . | . . . . . . . Combat Hostiles . | . . . . . . . Parts Melted . | . . . . . . . Heat Transferred 200 | . 200 . . . . . Parts Sabotaged . | . . . . . . . Parts Stolen . | . . . . . . . Parts Stripped . | . . . . . . . Power Chain Reactions 2 | . 2 . . . . . Alert | -11 -10 -10 -10 -9 -8 -8 ------- Run | Yrd Mat Min Exi Min Mat Gar Peak Influence 884 | . 184 131 . 98 419 884 Initial 272 | . . 71 . . . 272 Average 254 | . 137 88 . 39 262 544 Maximum Alert Level 3 | . . . . . 2 3 Low Security (%) 52 | 100 100 100 . 100 19 . Level 1 27 | . . . . . 63 47 Level 2 7 | . . . . . 17 11 Level 3 12 | . . . . . . 40 Level 4 . | . . . . . . . Level 5 . | . . . . . . . High Security . | . . . . . . . Max Security . | . . . . . . . Squads Dispatched 5 | . . . . . 5 . Investigation 4 | . . . . . 4 . Extermination . | . . . . . . . Reinforcement 1 | . . . . . 1 . Assault . | . . . . . . . Garrison . | . . . . . . . Intercept . | . . . . . . . Searches Triggered . | . . . . . . . Construction Impeded . | . . . . . . . Haulers Reinforced . | . . . . . . . Active Scanning Responses . | . . . . . . . Cargo Convoy Interrupts . | . . . . . . . Stealth | -11 -10 -10 -10 -9 -8 -8 --------- Run | Yrd Mat Min Exi Min Mat Gar Distress Signals . | . . . . . . . Communications Jammed . | . . . . . . . Distress Signals . | . . . . . . . Times Spotted 50 | . 5 3 . 3 16 23 Peak Tracking Total 6 | . 5 3 . 3 4 6 Tactical Retreats . | . . . . . . . Traps | -11 -10 -10 -10 -9 -8 -8 ------- Run | Yrd Mat Min Exi Min Mat Gar Traps Triggered 4 | . . . . . . 4 Indirectly . | . . . . . . . Trap Hack Attempts . | . . . . . . . Triggered . | . . . . . . . Disarmed . | . . . . . . . Reprogrammed . | . . . . . . . Reused . | . . . . . . . Traps Extracted . | . . . . . . . Installed . | . . . . . . . Triggered . | . . . . . . . Machines | -11 -10 -10 -10 -9 -8 -8 ---------- Run | Yrd Mat Min Exi Min Mat Gar Machines Disabled 6 | . 3 . . . 3 . Max in Single Turn 3 | . 3 . . . 2 . Machines Repaired . | . . . . . . . Machines Dismantled . | . . . . . . . Machines Sabotaged . | . . . . . . . Overloaded Fab Kills . | . . . . . . . Hacking | -11 -10 -10 -10 -9 -8 -8 --------- Run | Yrd Mat Min Exi Min Mat Gar Machines Accessed 8 | . 1 . . . 6 1 Terminals 7 | . 1 . . . 5 1 Fabricators . | . . . . . . . Repair Stations . | . . . . . . . Recycling Units . | . . . . . . . Scanalyzers . | . . . . . . . Garrison Access 1 | . . . . . 1 . Total Hacks 22 | . 2 . . . 17 3 Successful 8 | . . . . . 7 1 Failed 14 | . 2 . . . 10 2 Catastrophic 3 | . . . . . 2 1 Database Lockouts . | . . . . . . . Manual 16 | . 2 . 1 . 10 3 Terminals 21 | . 2 . . . 16 3 Fabricators . | . . . . . . . Repair Stations . | . . . . . . . Recycling Units . | . . . . . . . Scanalyzers . | . . . . . . . Garrison Access 1 | . . . . . 1 . Terminal Hacks 3 | . . . . . 3 . Garrison Index 1 | . . . . . 1 . Alert Level 1 | . . . . . 1 . Zone Layout 1 | . . . . . 1 . Fabricator Hacks . | . . . . . . . Repair Station Hacks . | . . . . . . . Recycling Unit Hacks . | . . . . . . . Scanalyzer . | . . . . . . . Garrison Access Hacks 1 | . . . . . 1 . Unlock Access 1 | . . . . . 1 . Unauthorized Hacks 4 | . . . . . 3 1 Terminals 4 | . . . . . 3 1 Botnet 4 | . . . . . 3 1 Fabricators . | . . . . . . . Repair Stations . | . . . . . . . Recycling Units . | . . . . . . . Scanalyzers . | . . . . . . . Garrison Access . | . . . . . . . Data Cores Recovered . | . . . . . . . Used . | . . . . . . . Hacking Detections 7 | . 1 . . . 5 1 Full Trace Events 5 | . . . . . 4 1 Feedback Events . | . . . . . . . Feedback Blocked . | . . . . . . . Robot Schematics Acquired . | . . . . . . . Robots Built . | . . . . . . . Authchips . | . . . . . . . Time . | . . . . . . . Total Robot Build Rating . | . . . . . . . Part Schematics Acquired . | . . . . . . . Parts Built . | . . . . . . . Authchips . | . . . . . . . Time . | . . . . . . . Total Part Build Rating . | . . . . . . . Parts Repaired . | . . . . . . . Time . | . . . . . . . Parts Recycled . | . . . . . . . Recycled Matter . | . . . . . . . Retrieved Matter . | . . . . . . . Retrieved Components . | . . . . . . . Parts Scanalyzed . | . . . . . . . Part Schematics Acquired . | . . . . . . . Parts Damaged . | . . . . . . . Bothacking | -11 -10 -10 -10 -9 -8 -8 ------------ Run | Yrd Mat Min Exi Min Mat Gar Used RIF Installer . | . . . . . . . Robots Hacked . | . . . . . . . Non-combat . | . . . . . . . Combat . | . . . . . . . Robot Hacks Applied . | . . . . . . . Relay Couplers Released . | . . . . . . . Fabnet Peak Effective % . | . . . . . . . Robots Rewired . | . . . . . . . Allies Hacked . | . . . . . . . Hacks Repelled . | . . . . . . . Allies | -11 -10 -10 -10 -9 -8 -8 -------- Run | Yrd Mat Min Exi Min Mat Gar Total Allies . | . . . . . . . Largest Group . | . . . . . . . Highest-Rated Group . | . . . . . . . Highest-Rated Ally . | . . . . . . . Total Orders . | . . . . . . . Ally Attacks . | . . . . . . . Total Damage . | . . . . . . . Kills . | . . . . . . . Allies Corrupted . | . . . . . . . Allies Melted . | . . . . . . . Intel | -11 -10 -10 -10 -9 -8 -8 ------- Run | Yrd Mat Min Exi Min Mat Gar Robot Analysis Total . | . . . . . . . Derelict Logs Recovered 2 | . . . . 2 . . Drone Launches . | . . . . . . . Drone Recoveries . | . . . . . . . Exploration | -11 -10 -10 -10 -9 -8 -8 ------------- Run | Yrd Mat Min Exi Min Mat Gar Turns Passed 3275 | 63 344 163 313 883 578 931 Spaces Moved 1579 | 44 268 104 241 448 172 302 Core 13 | 13 . . . . . . Treads 474 | . . . . . 172 302 Legs 1092 | 31 268 104 241 448 . . Wheels . | . . . . . . . Hover . | . . . . . . . Flight . | . . . . . . . Fastest Speed 50 | 50 120 120 120 190 320 250 Average Speed 194 | 105 120 120 127 190 320 287 Slowest Speed 325 | 120 120 120 190 260 320 325 Overloaded Moves . | . . . . . . . Propulsion Burnouts . | . . . . . . . Robots Hopped . | . . . . . . . Cave-ins Triggered . | . . . . . . . Exploration Rate (%) 39 | 3 31 31 62 86 21 39 Regions Visited 6 Branch Regions 3 Pre-discovered Areas 1 | . . . . 1 . . Known Exits Taken 1 | . . . . . 1 . Unknown Exits Taken 5 | 1 1 1 1 1 . . Scrap Searched 4 | . . 1 . 3 . . Spaces Dug . | . . . . . . . Terrain Destroyed 230 | . 55 . . 28 49 98 Melee . | . . . . . . . Projectile 29 | . . . . . 12 17 AOE 201 | . 55 . . 28 37 81 Terrain Rammed . | . . . . . . . Walls Destroyed . | . . . . . . . Machines Disabled . | . . . . . . . Actions | -11 -10 -10 -10 -9 -8 -8 --------- Run | Yrd Mat Min Exi Min Mat Gar Total 1725 | 61 280 129 250 468 201 336 Wait 12 | . . . 2 10 . . Move 1573 | 43 267 103 240 447 171 302 Hop . | . . . . . . . Pick Up 36 | 12 3 4 2 5 10 . Fast Attach . | . . . . . . . Attach 30 | 6 2 3 2 1 9 7 Detach 7 | . 1 . . . 5 1 Swap . | . . . . . . . Drop 13 | . . 2 4 . 4 3 Fire 43 | . 7 17 . 4 . 15 Melee . | . . . . . . . Ram . | . . . . . . . Kick 1 | . . . . 1 . . Crush 2 | . . . . . 2 . Escape Stasis 8 | . . . . . . 8 Rewire . | . . . . . . . Trap . | . . . . . . . Miscellaneous . | . . . . . . . Route ------- -11/Scrapyard -10/Materials (discovered 2 exits: [*Min x2]) -10/Mines -10/Exiles -9/Mines -8/Materials (discovered 2 exits: [*Sto] / Gar) -8/Garrison (discovered 2 exits: [*Mat x2]) History --------- Turn | Location | Event 13 | -11/Scrapyard | Discovered new exit (range 15) 64 | -11/Scrapyard | Entered Materials 72 | -10/Materials | Discovered new exit (range 15) 270 | -10/Materials | Discovered new exit (range 11) 308 | -10/Materials | Build established: Mutant 408 | -10/Materials | Entered Mines 517 | -10/Mines | Core integrity fell below 50% 564 | -10/Mines | Deemed a non-threat by the Exiles lab entrance 564 | -10/Mines | Discovered new exit (range 5) 571 | -10/Mines | Entered Exiles 600 | -10/Exiles | Met 8R-AWN 619 | -10/Exiles | Met EX-HEX 659 | -10/Exiles | Met EX-BIN 677 | -10/Exiles | Aligned with FarCom system 678 | -10/Exiles | Given EX-Vault access code 714 | -10/Exiles | Opened EX-Vault 722 | -10/Exiles | Found Prototype Ballistic Cannon 747 | -10/Exiles | Warned to stay clear of 0b10 Research branches 766 | -10/Exiles | Exiles lab attacked by MAIN.C 867 | -10/Exiles | Discovered new exit (range 10) 884 | -10/Exiles | Left Exiles lab with AWS/Autocannon 884 | -10/Exiles | Entered Mines 885 | -9/Mines | Learned location of Storage (-8) 1059 | -9/Mines | Learned Materials terminal intel 1099 | -9/Mines | Learned Materials terminal intel 1116 | -9/Mines | A weapon hastily lodged in a ceiling crevice suddenly fell to the ground 1685 | -9/Mines | Discovered new exit (range 11) 1767 | -9/Mines | Entered Materials 1767 | -8/Materials | Evolved 4 slots: Utility x3, Weapon x1 1768 | -8/Materials | Loaded intel: 12 terminal locations 1769 | -8/Materials | Identified AWS/Autocannon 1847 | -8/Materials | Discovered new exit (range 14) 1901 | -8/Materials | Destroyed 7 combat bots 2318 | -8/Materials | Build established: Tank 2341 | -8/Materials | Identified exit to Garrison 2345 | -8/Materials | Entered Garrison 2442 | -8/Garrison | Triggered checkpoint 2532 | -8/Garrison | Triggered checkpoint 2681 | -8/Garrison | Discovered new exit (range 6) 2808 | -8/Garrison | Triggered checkpoint 2822 | -8/Garrison | Triggered checkpoint 2841 | -8/Garrison | Destroyed 8 combat bots 2881 | -8/Garrison | Triggered checkpoint 2903 | -8/Garrison | Core integrity fell below 50% 2905 | -8/Garrison | Core integrity fell below 20% 2922 | -8/Garrison | Destroyed 8 combat bots 3128 | -8/Garrison | Discovered new exit (range 10) 3276 | -8/Garrison | Destroyed by P-60 Hacker with Shock Rifle Last Messages --------------- 03191_ Field strength at 70. 03193_ Field strength at 40. 03194_ Field strength at 10. 03195_ Stasis field depleted. 03195_ Triggered Stasis Trap. 03195_ A bubble of rippling energy engulfs the area. 03195_ Field strength at 70. 03198_ Field strength at 40. 03199_ Field strength at 10. 03200_ Stasis field depleted. 03220_ The unstable cave ceiling collapses. 03220_ Slug penetrates Wall. 03220_ G-47 Trooper destroyed. 03238_ Acquired 33 matter. 03258_ The unstable cave ceiling collapses. 03268_ P-60 Hacker springs to life. 03268_ Imp. Light Armor Plating destroyed. 03274_ P-60 Hacker knocked back. 03274_ P-60 Hacker destroyed. [Achievement: Remodeling] Map ----- +----------------------------------------------------+ | #??????# #??????# #??????# #?????????????????? | | #??????# #??????# #??????# #?????????????????? | | #??????# #??????# #??????# #?????????????????? | | ####????# #??????# #??????# #?????????????????? | | ## ###### #??????# ######## ##############????? | | ##?????# #????? | | =% %#?????# #????? | | #############?????####### ###T############ #????? | | ???????????????????????# #?###??????????# #????? | | ???????????????????????## #??????????????# #????? | | ??????????????????????### ##?????????????# #????? | | ??????????????????????# #?#???????????# #????? | | ?????????????????????## [ # #???????????# ###??? | | ?????????????????????# %# #???????????# #??? | | ?????????????????????# # * #???????????# < #??? | | ?????????????????????# ######???????# #??? | | ?????????????????????## #?????######??? | | ??????????????????????# # # #####??????????????? | | ??????????????????????### # #??????????????????? | | ????????????????????????# #####??????????????????? | | ????????????????????????# #??????????????????????? | | ?????????????????????##?# ####???????????????????? | | ?????????????????????# !# #! #???????????????????? | | ?????????????????????# # #???????????????????? | | ?????????????????????# #???????????????????? | | ?????????????????????# @ #???????????????????? | | ?????????????????????# p p #???????????????????? | | ?????????????????????# =%* #???????????????????? | | ????????????????????# #??????????????????? | | ????????????????????## #??????????????????? | | ????????????????????? #??????????????????? | | ????????????????????### ##??????????????????? | | ??????????????????????# # ##???????????????????? | | ??????????????????????####?##????????????????????? | | ?????????????????????????????????????????????????? | | ?????????????????????????????????????????????????? | | ?????????????????????????????????????????????????? | | ?????????????????????????????????????????????????? | | ?????????????????????????????????????????????????? | | ?????????????????????????????????????????????????? | | | | | | | | | | | | | | | | | | | | | +----------------------------------------------------+ Best States ------------- Heat Dissipation 31 Energy Generation 14 Energy Capacity 140 Matter Stores 300 Matter Capacity 300 Sight Range 16 Terrain Scan Density 10 Armor Coverage 450 Evasion (%) 55 Recoil Reduction 2 Item Schematics ----------------- None Robot Schematics ------------------ None Fabricated ------------ Nothing Alien Tech Used ----------------- None Achievements -------------- Remodeling Challenges ------------ None Game ------ Seed MetafieldLargeLattice Manual? 0 Play Time 00:36:47 Cumulative 13.4 hours Start 2024.06.22 @ 21:22:20 End 2024.06.25 @ 02:31:17 Sessions 8 Manual Loads 0 Difficulty Rogue Special Mode None Game No. 19 Rogue 19 Adventurer 0 Explorer 0 Win Type - Total 0 Types 0/0/0/0/0/0/0/0/0 Lore% 7 Gallery% 14 Achievement% 14 Wizard Run 0 Options --------- Layout 0 ASCII 1 Keyboard 0 Movement Arrows Keybinds 0 Fullscreen 2 Font 18/TerminusBold Map View 38x25 Zoom Use 35% Tactical HUD 1 Map Filters NONE Filters NONE Steam 1 RUN: 773a6f60-cf7f-4de6-a6c2-76fbcb3e0b54